fUSD/lending_fUSD_20260409
["ID","MTS","AMOUNT","RATE_DAILY","PERIOD"]
[420135556,1775707849900,-188.631978,0.0001481,2]
[420135557,1775707849910,-1278.80316,0.0001481,2]
[420135558,1775707849920,-156.115211,0.0001481,2]
[420135559,1775707849930,-1278.80316,0.0001481,2]
[420135560,1775707849941,-188.631978,0.0001481,2]
[420135561,1775707849951,-1278.80316,0.0001481,2]
[420135562,1775707849961,-1140.112147,0.0001481,2]
[420135563,1775707849971,-1278.80316,0.0001481,2]
[420135564,1775707849981,-1140.112147,0.0001481,2]
[420135565,1775707849991,-542.666277,0.0001481,2]
[420135566,1775707850001,-159.363601,0.0001481,2]
[420135567,1775707850011,-1140.112147,0.0001481,2]
[420135568,1775707850021,-542.666277,0.0001481,2]
[420135569,1775707850178,-151.0,0.0001481,2]
[420135570,1775707850189,-1140.112147,0.0001481,2]
[420135571,1775707850199,-542.666277,0.0001481,2]
[420135572,1775707850208,-692.000965,0.0001481,2]
[420135573,1775707850218,-542.666277,0.0001481,2]
[420135574,1775707850228,-692.000965,0.0001481,2]
[420135575,1775707850237,-2985.482116,0.0001481,2]
[420135576,1775707850247,-834.595256,0.0001481,2]
[420135577,1775707850257,-692.000965,0.0001481,2]
[420135578,1775707850266,-2985.482116,0.0001481,2]
[420135579,1775707850276,-151.0,0.0001481,2]
[420135580,1775707850286,-692.000965,0.0001481,2]
[420135581,1775707850296,-2985.482116,0.0001481,2]
[420135582,1775707850306,-834.595256,0.0001481,2]
[420135583,1775707850315,-151.0,0.0001481,2]
[420135584,1775707850325,-2985.482116,0.0001481,2]
[420135585,1775707850335,-834.595256,0.0001481,2]
[420135586,1775707850344,-151.0,0.0001481,2]
[420135587,1775707850355,-151.0,0.0001481,2]
[420135588,1775707850365,-834.595256,0.0001481,2]
[420135589,1775707850374,-151.0,0.0001481,2]
[420135590,1775707850384,-298.808376,0.0001481,2]
[420135591,1775707850394,-151.729075,0.0001481,2]
[420135592,1775707850404,-298.808376,0.0001481,2]
[420135593,1775707850413,-973.321463,0.0001481,2]
[420135594,1775707850423,-298.808376,0.0001481,2]
[420135595,1775707850433,-973.321463,0.0001481,2]
[420135596,1775707850443,-298.808376,0.0001481,2]
[420135597,1775707850452,-592.73500937,0.0001481,2]
[420135598,1775707851495,-380.58645363,0.0001481,2]
[420135599,1775707851504,-151.0,0.0001481,2]
[420135600,1775707851514,-973.321463,0.0001481,2]
[420135601,1775707851523,-151.0,0.0001481,2]
[420135602,1775707851533,-151.0,0.0001481,2]
[420135603,1775707851543,-151.0,0.0001481,2]
[420135604,1775707851552,-169.410671,0.0001481,2]
[420135605,1775707851562,-1648.187928,0.0001481,2]
[420135606,1775707851572,-169.410671,0.0001481,2]
[420135607,1775707851581,-1648.187928,0.0001481,2]
[420135608,1775707851591,-169.410671,0.0001481,2]
[420135609,1775707851600,-1648.187928,0.0001481,2]
[420135610,1775707851609,-169.410671,0.0001481,2]
[420135611,1775707851618,-1648.187928,0.0001481,2]
[420135612,1775707851628,-454.020191,0.0001481,2]
[420135613,1775707851638,-447.156607,0.0001481,2]
[420135614,1775707851647,-454.020191,0.0001481,2]
[420135615,1775707851658,-447.156607,0.0001481,2]
[420135616,1775707851667,-454.020191,0.0001481,2]
[420135617,1775707851677,-447.156607,0.0001481,2]
[420135618,1775707851686,-454.020191,0.0001481,2]
[420135619,1775707851697,-447.156607,0.0001481,2]
[420135620,1775707851707,-670.419119,0.0001481,2]
[420135621,1775707851716,-670.419119,0.0001481,2]
[420135622,1775707851726,-1988.936799,0.0001481,2]
[420135623,1775707851735,-670.419119,0.0001481,2]
[420135624,1775707851745,-151.0,0.0001481,2]
[420135625,1775707851754,-670.419119,0.0001481,2]
[420135626,1775707851764,-2145.13222937,0.0001481,2]
[420135627,1775707852130,-1406.05,0.000137,2]
[420135628,1775707852140,-1406.05,0.000137,2]
[420135629,1775707852149,-1406.05,0.000137,2]
[420135630,1775707852158,-1406.05,0.000137,2]
[420135631,1775707852167,-533.01450063,0.0001481,2]
[420135632,1775707852176,-1988.936799,0.0001481,2]
[420135633,1775707852185,-500.550849,0.0001481,2]
[420135634,1775707852194,-1764.981325,0.0001481,2]
[420135635,1775707852203,-2678.14673,0.0001481,2]
[420135636,1775707852212,-1988.936799,0.0001481,2]
[420135637,1775707852222,-159.87589758,0.0001481,2]
[420135638,1775707852233,-340.67495142,0.0001481,2]
[420135639,1775707852242,-1764.981325,0.0001481,2]
[420135640,1775707852251,-2495.65393155,0.0001481,2]
[420135641,1775707852263,-182.49279845,0.0001481,2]
[420135642,1775707852272,-705.50720155,0.0001481,2]
[420135643,1775707852321,-1178.52977922,0.00014079,2]
[420135644,1775707852333,-227.52022078,0.00014079,2]
[420135645,1775707852344,-654.92136281,0.0001481,2]
[420135646,1775707852914,-923.0,0.00010599,2]
[420135647,1775707852926,-15014.23577487,0.00010599,2]
[420135648,1775707852937,-377.88849031,0.00010599,2]
[420135649,1775707853038,-500.0,0.00010599,2]
[420135650,1775707899575,152.7,6.472e-05,2]
[420135651,1775707899775,152.7,7.766e-05,2]
[420135652,1775707926928,312.0,7.766e-05,3]
[420135653,1775707927176,312.0,8.515e-05,3]
[420135654,1775707928007,312.0,9.264e-05,3]
[420135655,1775707985653,265.0,9.264e-05,3]
[420135656,1775708058161,355.0,9.264e-05,3]
[420135657,1775708105752,411.0,9.264e-05,3]
[420135658,1775708167634,390.0,9.264e-05,3]
[420135659,1775708228400,371.0,9.264e-05,3]
[420135660,1775708299537,352.0,9.264e-05,3]
[420135661,1775708349085,335.0,9.264e-05,3]
[420135662,1775708411670,318.0,9.264e-05,3]
[420135663,1775708468495,302.0,9.264e-05,3]
[420135664,1775708487831,-152.7,9.06e-05,2]
[420135665,1775708487862,-250.0,9.497e-05,2]
[420135666,1775708487894,-302.0,9.934e-05,3]
[420135667,1775708487926,-250.0,9.967e-05,2]
[420135668,1775708487958,-400.0,0.0001,3]
[420135669,1775708487991,-265.70378613,0.0001,2]
[420135670,1775708488022,-1559.85,0.000102,2]
[420135671,1775708488055,-152.7,0.00010355,2]
[420135672,1775708488453,-309.27733986,0.00010373,2]
[420135673,1775708488485,-309.27733984,0.00010433,2]
[420135674,1775708488518,-500.0,0.00010473,2]
[420135675,1775708488565,-500.0,0.00010473,2]
[420135676,1775708488603,-500.0,0.00010473,2]
[420135677,1775708488637,-500.0,0.00010473,2]
[420135678,1775708488672,-300.0,0.00010492,2]
[420135679,1775708488707,-300.0,0.00010492,2]
[420135680,1775708488742,-209.84673482,0.00010493,2]
[420135681,1775708488776,-309.27733984,0.00010493,2]
[420135682,1775708488811,-151.0,0.00010496,2]
[420135683,1775708488846,-151.0,0.00010496,2]
[420135684,1775708488882,-1200.0,0.00010496,2]
[420135685,1775708488916,-150.0,0.00010497,2]
[420135686,1775708488953,-159.41460008,0.00010498,2]
[420135687,1775708488987,-500.0,0.00010498,2]
[420135688,1775708489023,-470.74218647,0.00010498,2]
[420135689,1775708489059,-500.0,0.00010498,2]
[420135690,1775708489093,-371.96740018,0.00010498,2]
[420135691,1775708489133,-500.0,0.00010498,2]
[420135692,1775708489169,-500.0,0.00010498,2]
[420135693,1775708489205,-500.0,0.00010498,2]
[420135694,1775708489240,-391.96924597,0.00010498,2]
[420135695,1775708489274,-500.0,0.00010498,2]
[420135696,1775708489308,-500.0,0.00010498,2]
[420135697,1775708489342,-500.0,0.00010498,2]
[420135698,1775708489378,-500.0,0.00010498,2]
[420135699,1775708489412,-500.0,0.00010498,2]
[420135700,1775708489447,-219.94676699,0.00010498,2]
[420135701,1775708489480,-500.0,0.00010498,2]
[420135702,1775708489519,-500.0,0.00010498,2]
[420135703,1775708489558,-500.0,0.00010498,2]
[420135704,1775708489595,-500.0,0.00010498,2]
[420135705,1775708489632,-500.0,0.00010498,2]
[420135706,1775708489670,-546.36728196,0.00010498,2]
[420135707,1775708489715,-500.0,0.00010498,2]
[420135708,1775708489754,-500.0,0.00010498,2]
[420135709,1775708489793,-500.0,0.00010498,2]
[420135710,1775708489829,-1084.35002386,0.00010498,3]
[420135711,1775708489864,-1104.19256263,0.00010498,3]
[420135712,1775708489901,-878801.0091,0.00010499,2]
[420135713,1775708492246,15956.0441,0.00010399,2]
[420135714,1775708492494,172.89,0.00010498,2]
[420135715,1775708492531,3331.746,0.00010498,2]
[420135716,1775708496792,2500.0,0.00010399,2]
[420135717,1775708523336,500.0,0.00010473,2]
[420135718,1775708527493,272.0,0.000105,2]
[420135719,1775708527858,151.0,0.00010493,2]
[420135720,1775708528483,151.0,0.00010493,2]
[420135721,1775708529117,151.0,0.00010493,2]
[420135722,1775708529695,151.0,0.00010493,2]
[420135723,1775708530868,151.0,0.00010493,2]
[420135724,1775708531425,151.0,0.00010493,2]
[420135725,1775708531638,500.0,0.00010493,2]
[420135726,1775708531689,502.19224822,0.00010473,2]
[420135727,1775708531927,151.0,0.00010493,2]
[420135728,1775708532235,500.0,0.00010493,2]
[420135729,1775708532570,151.0,0.00010493,2]
[420135730,1775708532829,500.0,0.00010493,2]
[420135731,1775708533189,151.0,0.00010493,2]
[420135732,1775708533440,500.0,0.00010493,2]
[420135733,1775708533781,151.0,0.00010493,2]
[420135734,1775708534028,500.0,0.00010493,2]
[420135735,1775708534398,151.0,0.00010493,2]
[420135736,1775708534628,500.0,0.00010493,2]
[420135737,1775708534984,151.0,0.00010493,2]
[420135738,1775708535224,500.0,0.00010493,2]
[420135739,1775708535570,151.0,0.00010493,2]
[420135740,1775708535717,200.0,0.00010493,2]
[420135741,1775708535844,500.0,0.00010493,2]
[420135742,1775708537472,151.0,0.00010493,2]
[420135743,1775708537613,500.0,0.00010493,2]
[420135744,1775708537701,151.0,0.00010493,2]
[420135745,1775708537756,500.0,0.00010493,2]
[420135746,1775708537817,151.0,0.00010493,2]
[420135747,1775708537871,500.0,0.00010493,2]
[420135748,1775708538445,500.0,0.00010493,2]
[420135749,1775708539029,539.77037262,0.00010493,2]
[420135750,1775708963346,152.0,6.853e-05,2]
[420135751,1775709032443,-258.0,0.00010493,3]
[420135752,1775709032453,-747.3639732,0.00010599,2]
[420135753,1775709032465,-252.6360268,0.00010599,2]
[420135754,1775709032474,-328.72342175,0.00010892,2]
[420135755,1775709032486,-462.46160238,0.00010892,2]
[420135756,1775709032498,-127.53497587,0.00010892,2]
[420135757,1775709032507,-1513.13675402,0.00010899,2]
[420135758,1775709032519,-1794.47750331,0.00010899,2]
[420135759,1775709032663,-54578.05497881,0.00010899,2]
[420135760,1775709032675,-30218.89193462,0.00010899,2]
[420135761,1775709032687,-12979.23602924,0.00010899,2]
[420135762,1775709032696,-1933.68,0.00010959,2]
[420135763,1775709032705,-500.0,0.00010998,2]
[420135764,1775709032714,-300.0,0.00010998,2]
[420135767,1775709033196,-1200.0,0.00010998,2]
[420135768,1775709033206,-150.0,0.00010998,2]
[420135769,1775709033215,-21772.33087601,0.00010999,2]
[420135770,1775709033226,-418.75,0.00010999,2]
[420135771,1775709033238,-284.15203215,0.00010999,2]
[420135772,1775709033250,-1552.98,0.00010999,2]
[420135773,1775709033261,-347.8503141,0.00010999,2]
[420135774,1775709033273,-1482.34398728,0.00010999,2]
[420135776,1775709038614,-9015.85600549,0.00010999,2]
[420135777,1775709038626,-860.08389827,0.00010999,2]
[420135778,1775709038637,-852.28154803,0.00010999,2]
[420135779,1775709038648,-289.02433154,0.00010999,2]
[420135780,1775709038802,-2841.00688939,0.00010999,2]
[420135781,1775709038813,-949.39494429,0.00010999,2]
[420135803,1775709040924,-67152.81947345,0.00010999,2]
[420135804,1775709040933,-151.524,0.00011022,2]
[420135805,1775709040942,-1468.65,0.00011024,2]
[420135806,1775709040951,-163.95,0.00011047,2]
[420135807,1775709040960,-200.0,0.00011049,2]
[420135808,1775709040969,-200.0,0.00011092,2]
[420135809,1775709040979,-151.0,0.00011092,2]
[420135810,1775709040988,-151.0,0.00011092,2]
[420135811,1775709040997,-151.0,0.00011092,2]
[420135812,1775709041007,-151.0,0.00011092,2]
[420135813,1775709041016,-151.0,0.00011092,2]
[420135814,1775709041025,-151.0,0.00011092,2]
[420135815,1775709041034,-151.0,0.00011092,2]
[420135816,1775709041043,-500.0,0.00011092,2]
[420135817,1775709041053,-256.16703613,0.00011092,2]
[420135818,1775709041062,-1156.41848616,0.00011092,2]
[420135819,1775709041071,-500.0,0.00011092,2]
[420135820,1775709041080,-258.0,0.00011099,3]
[420135821,1775709041090,-195.65,0.00011129,2]
[420135822,1775709041099,-152.0,0.0001121,3]
[420135823,1775709041108,-362.0,0.00011295,2]
[420135824,1775709041118,-150.0,0.000113,2]
[420135825,1775709041127,-419.0,0.00011325,2]
[420135826,1775709041136,-236.0,0.0001134,2]
[420135827,1775709041146,-8161.33,0.00011507,2]
[420135828,1775709041156,-152.0,0.00011539,4]
[420135829,1775709041165,-195.0,0.00011541,2]
[420135830,1775709041174,-195.0,0.00011541,2]
[420135831,1775709041184,-195.0,0.00011541,2]
[420135832,1775709041193,-195.0,0.00011541,2]
[420135833,1775709041203,-195.0,0.00011541,2]
[420135834,1775709041212,-600.0,0.00011541,2]
[420135835,1775709041222,-600.0,0.00011541,2]
[420135836,1775709041232,-600.0,0.00011541,2]
[420135837,1775709041241,-600.0,0.00011541,2]
[420135838,1775709041250,-600.0,0.00011541,2]
[420135839,1775709041259,-300.32314758,0.00011541,2]
[420135840,1775709041268,-154.28671623,0.00011541,2]
[420135841,1775709041278,-151.0,0.00011598,2]
[420135842,1775709041287,-1518.21,0.00011616,2]
[420135843,1775709041296,-503.49918518,0.0001163,2]
[420135844,1775709041306,-150.0,0.00011632,2]
[420135845,1775709041315,-161.7,0.00011632,2]
[420135846,1775709041324,-200.0,0.0001164,2]
[420135847,1775709041334,-1199.20597015,0.0001164,2]
[420135848,1775709041343,-152.7,0.00011649,2]
[420135849,1775709041352,-258.0,0.00011704,3]
[420135850,1775709041362,-152.0,0.00011868,5]
[420135851,1775709041371,-302.9,0.00011938,2]
[420135852,1775709041380,-170.59,0.00011938,2]
[420135853,1775709041389,-163.95,0.00011967,2]
[420135854,1775709041398,-500.0,0.00011989,2]
[420135855,1775709041407,-2000.0,0.00012006,2]
[420135856,1775709041417,-255.0,0.00012043,2]
[420135857,1775709041426,-420.0,0.00012086,2]
[420135858,1775709041436,-1680.0,0.00012098,2]
[420135859,1775709041446,-200.0,0.00012188,2]
[420135860,1775709041455,-475.8458636,0.00012188,2]
[420135861,1775709041464,-152.0,0.00012197,6]
[420135862,1775709041473,-258.0,0.0001231,3]
[420135863,1775709041482,-500.0,0.00012485,2]
[420135864,1775709041491,-174.61919141,0.00012485,2]
[420135867,1775709041809,-601.3376128,0.00012485,2]
[420135868,1775709041819,-578.20924308,0.00012485,2]
[420135869,1775709041829,-7965.41053268,0.00012485,2]
[420135870,1775709041838,-1500.0,0.00012485,2]
[420135871,1775709041847,-1500.0,0.00012485,2]
[420135872,1775709041856,-1500.0,0.00012485,2]
[420135873,1775709041866,-1500.0,0.00012485,2]
[420135874,1775709041875,-1500.0,0.00012485,2]
[420135875,1775709041884,-1500.0,0.00012485,2]
[420135876,1775709041894,-151.0,0.00012485,2]
[420135877,1775709041903,-1500.0,0.00012485,2]
[420135878,1775709041913,-151.0,0.00012485,2]
[420135879,1775709041922,-1500.0,0.00012485,2]
[420135880,1775709041932,-151.0,0.00012485,2]
[420135881,1775709041942,-1500.0,0.00012485,2]
[420135882,1775709041951,-162.00740209,0.00012485,2]
[420135883,1775709041960,-1612.05314765,0.00012485,2]
[420135884,1775709041970,-743.50770149,0.00012485,2]
[420135885,1775709041979,-178.09177821,0.00012485,2]
[420135886,1775709041988,-160.71220784,0.00012485,2]
[420135887,1775709041997,-175.89177646,0.00012485,2]
[420135888,1775709042007,-174.61919141,0.00012485,2]
[420135889,1775709042016,-151.0,0.00012485,2]
[420135890,1775709042026,-578.20924308,0.00012485,2]
[420135891,1775709042035,-1500.0,0.00012485,2]
[420135892,1775709042044,-1538.04492128,0.00012485,2]
[420135893,1775709042054,-279.9045709,0.00012485,2]
[420135894,1775709042063,-152.0,0.00012526,7]
[420135895,1775709042072,-500.0,0.0001254,2]
[420135896,1775709042082,-8260.13072239,0.0001254,2]
[420135897,1775709042091,-151.0,0.0001254,2]
[420135898,1775709042101,-500.0,0.00012595,2]
[420135899,1775709042110,-8565.75555911,0.00012595,2]
[420135900,1775709042119,-151.0,0.00012595,2]
[420135901,1775709042128,-500.0,0.0001265,2]
[420135902,1775709042138,-8882.6885148,0.0001265,2]
[420135903,1775709042149,-151.0,0.0001265,2]
[420135904,1775709042158,-173.2484,0.000127,2]
[420135905,1775709042171,-1900.0,0.000127,4]
[420135906,1775709042180,-29369.02139681,0.000127,2]
[420135907,1775709042190,-500.0,0.00012705,2]
[420135908,1775709042199,-9211.34798985,0.00012705,2]
[420135909,1775709042209,-151.0,0.00012705,2]
[420135910,1775709042218,-200.0,0.00012736,2]
[420135911,1775709042228,-500.0,0.0001276,2]
[420135912,1775709042238,-9552.16786547,0.0001276,2]
[420135913,1775709042247,-151.0,0.0001276,2]
[420135914,1775709042256,-500.0,0.00012795,2]
[420135915,1775709042266,-329.51953053,0.00012795,2]
[420135916,1775709042275,-169.54971223,0.00012795,2]
[420135917,1775709042285,-371.96740018,0.00012795,2]
[420135918,1775709042294,-500.0,0.00012795,2]
[420135919,1775709042303,-500.0,0.00012795,2]
[420135920,1775709042313,-500.0,0.00012795,2]
[420135921,1775709042322,-500.0,0.00012795,2]
[420135922,1775709042331,-500.0,0.00012795,2]
[420135923,1775709042341,-174.37847218,0.00012795,2]
[420135924,1775709042351,-500.0,0.00012795,2]
[420135925,1775709042360,-603.96273689,0.00012795,2]
[420135926,1775709042369,-37353.14668503,0.00012796,2]
[420135927,1775709042378,-3900.0,0.000128,4]
[420135928,1775709042387,-500.0,0.00012815,2]
[420135929,1775709042397,-9905.5980765,0.00012815,2]
[420135930,1775709042406,-151.0,0.00012815,2]
[420135931,1775709042416,-152.0,0.00012855,8]
[420135932,1775709042425,-500.0,0.0001287,2]
[420135933,1775709042434,-10272.10520533,0.0001287,2]
[420135934,1775709042443,-151.0,0.0001287,2]
[420135935,1775709042453,-163.95,0.00012888,2]
[420135936,1775709042464,-5800.0,0.000129,4]
[420135937,1775709042474,-258.0,0.00012916,3]
[420135938,1775709042483,-500.0,0.00012925,2]
[420135939,1775709042492,-10652.17309792,0.00012925,2]
[420135940,1775709042501,-151.0,0.00012925,2]
[420135941,1775709042510,-152.7,0.00012944,2]
[420135942,1775709042519,-500.0,0.0001298,2]
[420135943,1775709042529,-883.94279567,0.0001298,2]
[420135944,1775709042538,-151.0,0.0001298,2]
[420135945,1775709042548,-29369.02139675,0.00012994,2]
[420135946,1775709042557,-250.0,0.00013,2]
[420135947,1775709042566,-181.08010149,0.00013033,2]
[420135948,1775709042576,-771.01748645,0.00013033,2]
[420135949,1775709042585,-181.08010149,0.00013033,2]
[420135950,1775709042595,-599.60298507,0.00013033,2]
[420135951,1775709042604,-290.26104003,0.00013033,2]
[420135952,1775709042614,-500.0,0.00013035,2]
[420135953,1775709042623,-151.0,0.00013035,2]
[420135954,1775709042632,-500.0,0.0001309,2]
[420135955,1775709042641,-151.0,0.0001309,2]
[420135956,1775709042651,-502.0,0.000131,2]
[420135957,1775709042660,-1933.68,0.00013122,2]
[420135958,1775709042670,-500.0,0.00013145,2]
[420135959,1775709042679,-151.0,0.00013145,2]
[420135960,1775709042688,-37353.14668503,0.00013176,2]
[420135961,1775709042698,-152.0,0.00013184,9]
[420135962,1775709042707,-433.0,0.00013186,2]
[420135963,1775709042716,-500.0,0.000132,2]
[420135964,1775709042726,-151.0,0.000132,2]
[420135965,1775709042735,-259.635782,0.00013214,2]
[420135966,1775709042744,-160.0,0.00013214,2]
[420135967,1775709042754,-418.721273,0.00013214,2]
[420135968,1775709042763,-677.442547,0.00013214,2]
[420135969,1775709042773,-160.0,0.00013214,2]
[420135970,1775709042782,-668.567434,0.00013214,2]
[420135971,1775709042792,-1177.134869,0.00013214,2]
[420135972,1775709042801,-160.0,0.00013214,2]
[420135973,1775709042811,-1111.924903,0.00013214,2]
[420135974,1775709042820,-2063.849807,0.00013214,2]
[420135975,1775709042829,-160.0,0.00013214,2]
[420135976,1775709042838,-2405.53526,0.00013214,2]
[420135977,1775709042847,-4651.07052,0.00013214,2]
[420135978,1775709042856,-289.120034,0.00013214,2]
[420135979,1775709042866,-500.0,0.00013255,2]
[420135980,1775709042875,-151.0,0.00013255,2]
[420135981,1775709042884,-587.0,0.00013281,2]
[420135982,1775709042894,-200.0,0.00013284,2]
[420135983,1775709042903,-29369.02139675,0.00013288,2]
[420135984,1775709042913,-2351.0,0.00013307,2]
[420135985,1775709042922,-500.0,0.0001331,2]
[420135986,1775709042931,-151.0,0.0001331,2]
[420135987,1775709042940,-33975.0,0.00013384,2]
[420135988,1775709042950,-313.13612484,0.00013384,2]
[420135989,1775709042959,-209.84673482,0.00013384,2]
[420135990,1775709042968,-808.33314087,0.00013384,2]
[420135991,1775709042977,-1124.60160444,0.00013474,2]
[420135992,1775709042986,-1510190.6771003,0.00013484,2]
[420135993,1775709042994,-3187.2094707,0.00013484,2]
[420135994,1775709043003,-151.0,0.00013484,2]
[420135995,1775709043012,-151.0,0.00013484,2]
[420135996,1775709043022,-151.0,0.00013484,2]
[420135997,1775709043031,-290.115354,0.00013484,2]
[420135998,1775709043041,-2000.0,0.00013507,2]
[420135999,1775709043051,-152.0,0.00013513,10]
[420136000,1775709043060,-258.0,0.00013521,3]
[420136001,1775709043070,-3000.0,0.00013534,2]
[420136002,1775709043079,-37353.14668503,0.00013555,2]
[420136003,1775709043088,-33956.0,0.00013562,2]
[420136004,1775709043098,-187.78006524,0.00013581,2]
[420136005,1775709043107,-799.54513345,0.00013581,2]
[420136006,1775709043116,-187.78006525,0.00013581,2]
[420136007,1775709043126,-688.68986638,0.00013581,2]
[420136008,1775709043135,-240.62877446,0.00013581,2]
[420136009,1775709043145,-29369.02139675,0.00013583,2]
[420136010,1775709043154,-200.0,0.00013589,2]
[420136011,1775709043164,-1651.24188523,0.0001367,2]
[420136012,1775709043173,-500.0,0.00013698,2]
[420136013,1775709043182,-500.0,0.00013698,2]
[420136014,1775709043191,-603.88888953,0.00013698,2]
[420136016,1775709043200,-500.0,0.00013698,2]
[420136018,1775709043209,-500.0,0.00013698,2]
[420136019,1775709043218,-500.0,0.00013698,2]
[420136021,1775709043227,-500.0,0.00013698,2]
[420136022,1775709043237,-500.0,0.00013698,2]
[420136023,1775709043246,-500.0,0.00013698,2]
[420136024,1775709043255,-500.0,0.00013698,2]
[420136025,1775709043265,-500.0,0.00013698,2]
[420136027,1775709043274,-500.0,0.00013698,2]
[420136029,1775709043283,-500.0,0.00013698,2]
[420136030,1775709043291,-500.0,0.00013698,2]
[420136031,1775709043301,-500.0,0.00013698,2]
[420136032,1775709043310,-500.0,0.00013698,2]
[420136033,1775709043319,-500.0,0.00013698,2]
[420136034,1775709043328,-179.59342446,0.00013698,2]
[420136035,1775709043337,-500.0,0.00013698,2]
[420136036,1775709043346,-500.0,0.00013698,2]
[420136037,1775709043356,-500.0,0.00013698,2]
[420136038,1775709043366,-500.0,0.00013698,2]
[420136039,1775709043375,-500.0,0.00013698,2]
[420136040,1775709043384,-500.0,0.00013698,2]
[420136041,1775709043393,-500.0,0.00013698,2]
[420136042,1775709043403,-500.0,0.00013698,2]
[420136043,1775709043412,-500.0,0.00013698,2]
[420136044,1775709043422,-541.4,0.00013698,2]
[420136045,1775709043431,-500.0,0.00013698,2]
[420136046,1775709043441,-500.0,0.00013698,2]
[420136047,1775709043450,-500.0,0.00013698,2]
[420136048,1775709043459,-500.0,0.00013698,2]
[420136049,1775709043468,-500.0,0.00013698,2]
[420136050,1775709043478,-500.0,0.00013698,2]
[420136051,1775709043487,-500.0,0.00013698,2]
[420136052,1775709043496,-500.0,0.00013698,2]
[420136053,1775709043507,-500.0,0.00013698,2]
[420136054,1775709043517,-500.0,0.00013698,2]
[420136055,1775709043526,-500.0,0.00013698,2]
[420136056,1775709043535,-500.0,0.00013698,2]
[420136057,1775709043545,-500.0,0.00013698,2]
[420136058,1775709043555,-500.0,0.00013698,2]
[420136059,1775709043564,-500.0,0.00013698,2]
[420136060,1775709043573,-500.0,0.00013698,2]
[420136061,1775709043583,-500.0,0.00013698,2]
[420136062,1775709043594,-500.0,0.00013698,2]
[420136063,1775709043603,-500.0,0.00013698,2]
[420136064,1775709043613,-500.0,0.00013698,2]
[420136065,1775709043623,-500.0,0.00013698,2]
[420136066,1775709043632,-500.0,0.00013698,2]
[420136067,1775709043641,-500.0,0.00013698,2]
[420136068,1775709043651,-500.0,0.00013698,2]
[420136069,1775709043660,-500.0,0.00013698,2]
[420136070,1775709043669,-500.0,0.00013698,2]
[420136071,1775709043678,-500.0,0.00013698,2]
[420136072,1775709043688,-500.0,0.00013698,2]
[420136073,1775709043699,-500.0,0.00013698,2]
[420136074,1775709043708,-500.0,0.00013698,2]
[420136075,1775709043718,-500.0,0.00013698,2]
[420136076,1775709043727,-500.0,0.00013698,2]
[420136077,1775709043736,-500.0,0.00013698,2]
[420136078,1775709043746,-500.0,0.00013698,2]
[420136079,1775709043756,-500.0,0.00013698,2]
[420136080,1775709043765,-500.0,0.00013698,2]
[420136081,1775709043775,-500.0,0.00013698,2]
[420136082,1775709043784,-500.0,0.00013698,2]
[420136083,1775709043794,-500.0,0.00013698,2]
[420136084,1775709043803,-500.0,0.00013698,2]
[420136085,1775709043813,-500.0,0.00013698,2]
[420136086,1775709043822,-500.0,0.00013698,2]